bitfinex/quotes_ETHUSD_20220227
["timestamp","ask_amount","ask_price","bid_price","bid_amount"]
[1646004697342,3.32436153,2603.0,2602.0,3.8827]
[1646004697542,1.92324,2603.0,2602.2,0.3827]
[1646004697745,0.5,2603.1,2602.5,0.3827]
[1646004697945,0.5,2603.1,2602.6,0.3827]
[1646004698142,0.45,2603.1,2602.4,3.8827]
[1646004698495,1.40112153,2603.3,2602.4,0.3827]
[1646004698694,1.40112153,2603.3,2601.4,0.01229239]
[1646004698695,1.40112153,2603.2,2601.8,5.0]
[1646004698897,1.40112153,2603.0,2601.5,5.0]
[1646004699095,1.40112153,2603.0,2601.7,0.3827]
[1646004699096,1.55482153,2602.9,2601.7,0.3827]
[1646004699299,1.40112153,2603.1,2602.0,0.3827]
[1646004699496,8.70112153,2603.4,2602.1,8.70375026]
[1646004699695,8.70112153,2603.4,2602.0,5.0]
[1646004699696,1.26785471,2602.9,2602.0,5.0]
[1646004699899,1.26785471,2602.9,2601.5,5.0]
[1646004700097,1.26785471,2602.9,2601.7,0.3827]
[1646004700098,2.82267624,2602.9,2601.7,0.3827]
[1646004700496,2.82267624,2602.9,2601.6,0.3827]
[1646004700696,2.82267624,2602.9,2601.5,5.00132507]
[1646004700697,1.16219389,2601.8,2601.5,0.00132507]
[1646004700899,0.457,2602.4,2601.5,0.00132507]
[1646004701098,0.96192,2602.4,2601.5,0.00132507]
[1646004701297,1.0,2602.5,2601.5,0.00132507]
[1646004701499,0.1537,2602.4,2601.5,0.00132507]
[1646004702003,0.3,2602.4,2601.5,0.00220589]
[1646004702239,1.13378193,2601.8,2601.5,0.00220589]
[1646004702441,3.15812153,2602.7,2601.5,0.00220589]
[1646004702442,0.1537,2602.6,2601.5,0.00220589]
[1646004702841,0.1537,2602.6,2601.5,0.00132507]
[1646004703040,0.1537,2602.6,2601.5,0.00220589]
[1646004703242,0.1537,2602.6,2601.7,0.3827]
[1646004703440,1.17416714,2602.2,2601.6,5.3827]
[1646004703641,0.1537,2602.6,2601.6,0.3827]
[1646004703845,1.85812153,2602.9,2602.2,0.3827]
[1646004704046,7.3,2603.0,2602.4,0.3827]
[1646004704241,7.3,2603.0,2602.0,0.27212135]
[1646004704242,7.3,2603.0,2602.6,0.3827]
[1646004704647,1.14670573,2603.3,2602.7,1.06762841]
[1646004704846,1.14670573,2603.3,2602.6,4.1827]
[1646004705044,1.14670573,2603.3,2602.6,0.6827]
[1646004705243,1.14670573,2603.3,2602.6,0.3]
[1646004705447,2.70132726,2603.3,2602.3,5.0]
[1646004705646,1.40112153,2603.2,2602.3,5.0]
[1646004705982,0.1535,2603.1,2601.9,5.0]
[1646004706188,7.3,2603.0,2602.0,0.3827]
[1646004706487,8.3,2603.0,2601.9,8.5]
[1646004706688,0.1537,2602.9,2601.9,5.0]
[1646004706889,1.25800911,2602.3,2601.9,5.0]
[1646004707091,1.25800911,2602.3,2601.6,0.00132538]
[1646004708191,1.25800911,2602.3,2601.6,3.50132538]
[1646004708392,1.25800911,2602.3,2601.6,1.44263748]
[1646004708794,1.25800911,2602.3,2601.6,1.74263748]
[1646004709193,0.457,2602.5,2601.6,1.74263748]
[1646004709394,1.40112153,2602.8,2602.2,5.0]
[1646004709597,7.3,2603.0,2602.3,3.5]
[1646004709864,7.3,2603.0,2602.0,0.3]
[1646004710064,0.3099,2602.9,2602.0,0.30132517]
[1646004710262,0.3099,2602.9,2602.2,1.15628431]
[1646004710462,0.1563,2602.9,2602.2,6.15628431]
[1646004710764,0.1563,2602.9,2602.0,0.00132517]
[1646004710965,0.31,2602.9,2602.0,0.00132517]
[1646004711465,0.1537,2602.8,2602.0,0.00132517]
[1646004712063,0.1537,2602.8,2602.0,0.15503917]
[1646004712263,0.1563,2602.9,2602.5,5.0]
[1646004712467,0.1563,2602.9,2602.1,0.3827]
[1646004712663,0.1563,2602.9,2602.0,8.50132517]
[1646004712862,0.1563,2602.9,2602.1,0.3]
[1646004712863,1.12110494,2602.6,2602.1,0.3]
[1646004713063,0.31,2602.9,2602.1,0.3]
[1646004713268,0.1563,2602.9,2602.4,5.0]
[1646004713488,0.1563,2602.9,2602.6,5.0]
[1646004713888,0.1563,2603.1,2602.6,0.3]
[1646004714092,0.1563,2603.1,2602.0,0.00132517]
[1646004714093,1.28973798,2602.7,2602.2,5.0]
[1646004714290,1.28973798,2602.7,2602.0,0.00132517]
[1646004714892,0.9616,2602.9,2602.1,5.0]
[1646004715099,8.3,2603.0,2602.4,5.0]
[1646004715796,8.3,2603.0,2602.4,5.3]
[1646004715996,1.43689688,2602.6,2602.4,5.3]
[1646004716197,8.3,2603.0,2602.4,5.3]
[1646004716597,8.4535,2603.0,2602.4,5.3]
[1646004716797,8.3,2603.0,2602.4,5.3]
[1646004716996,0.1563,2602.9,2602.4,5.3]
[1646004717644,0.1563,2602.9,2602.1,1.41520808]
[1646004717841,0.1563,2602.9,2602.4,5.0]
[1646004718341,0.1563,2602.9,2602.7,5.0]
[1646004718740,0.1563,2602.9,2602.7,0.3]
[1646004718941,0.1563,2602.9,2602.7,5.3]
[1646004720045,0.1563,2602.9,2602.7,5.30132388]
[1646004720247,0.1563,2602.9,2602.7,4.58626533]
[1646004720444,0.1563,2602.9,2602.1,3.5]
[1646004720645,0.1563,2602.9,2601.6,0.22641275]
[1646004720646,0.1563,2602.9,2601.6,0.2378501]
[1646004720847,0.1563,2602.9,2601.9,4.58626533]
[1646004721102,0.1563,2602.9,2601.5,0.0008857]
[1646004721103,1.8148562,2602.6,2601.5,0.0008857]
[1646004721309,1.12576447,2601.7,2601.5,0.0008857]
[1646004721508,0.457,2602.0,2601.6,4.58626533]
[1646004721704,1.1563,2602.5,2601.9,4.58626533]
[1646004721902,0.1563,2602.5,2601.9,4.58626533]
[1646004722104,0.1563,2602.5,2601.6,1.22535735]
[1646004722302,0.1563,2602.5,2602.1,4.88626533]
[1646004722503,0.1563,2602.5,2602.2,1.03601138]
[1646004722807,0.1563,2602.5,2602.3,4.58626533]
[1646004723003,0.1563,2602.5,2602.3,4.88626533]
[1646004724207,8.3,2602.9,2602.4,0.60033523]
[1646004724509,1.92277,2603.7,2602.8,4.58626533]
[1646004724510,1.40112153,2603.5,2602.8,4.58626533]
[1646004724755,8.99282153,2603.6,2603.2,4.58626533]
[1646004724944,7.4381,2603.6,2602.8,0.3]
[1646004725151,7.4381,2603.6,2602.0,0.38397424]
[1646004725152,1.40112153,2603.2,2602.3,4.58626533]
[1646004725352,0.6105,2603.1,2602.3,0.3]
[1646004725552,0.6105,2603.1,2602.1,4.58626533]
[1646004725747,0.6105,2603.1,2602.1,4.88626533]
[1646004726552,1.10353282,2602.4,2602.1,4.88626533]
[1646004726952,0.457,2602.9,2602.3,4.58626533]
[1646004727353,0.457,2602.9,2602.3,4.88626533]
[1646004727957,1.15707368,2602.6,2602.3,4.88626533]
[1646004728792,0.457,2602.9,2602.4,4.58626533]
[1646004728990,1.1535,2603.1,2602.1,0.25589481]
[1646004729191,3.36258153,2603.2,2602.5,4.58626533]
[1646004729593,2.36258153,2603.2,2602.5,4.88626533]
[1646004729791,3.36258153,2603.2,2602.5,4.88626533]
[1646004730091,2.36258153,2603.2,2602.5,4.88626533]
[1646004730292,1.40112153,2603.1,2602.3,0.00127373]
[1646004730499,1.28892214,2602.7,2601.6,0.27748449]
[1646004730695,2.51671153,2602.6,2601.5,0.00088739]
[1646004730896,1.40112153,2602.4,2601.5,0.00088739]
[1646004731100,2.01182153,2602.3,2601.5,0.00088739]
[1646004731296,0.457,2602.2,2601.5,0.00088739]
[1646004731497,0.1537,2602.1,2601.5,0.00088739]
[1646004731697,0.457,2602.0,2601.4,3.8]
[1646004731997,0.96202,2601.9,2601.4,3.8]
[1646004732242,0.457,2601.8,2601.4,3.8]
[1646004732649,0.457,2601.8,2601.4,1.0332]
[1646004732650,1.12940567,2601.7,2601.4,1.0332]
[1646004732851,0.1537,2601.6,2601.0,20.0]
[1646004733060,0.6107,2601.6,2601.0,20.0]
[1646004733450,4.90112153,2601.5,2601.0,20.0]
[1646004733648,1.57311,2601.4,2601.0,20.0]
[1646004733849,1.57311,2601.4,2601.0,18.0092]
[1646004733850,2.97423153,2601.4,2601.0,18.0092]
[1646004734049,1.40112153,2601.3,2601.0,18.0092]
[1646004734248,0.6107,2601.2,2601.1,0.00088755]
[1646004734452,0.6107,2601.2,2600.1,0.00096]
[1646004734453,3.5,2601.0,2600.1,0.00096]
[1646004734653,3.30074367,2600.9,2600.1,0.00096]
[1646004734950,3.2597824,2600.9,2600.1,0.00096]
[1646004735150,2.68790887,2600.8,2600.1,0.00096]
[1646004735350,0.457,2600.7,2600.1,0.00096]
[1646004735556,0.457,2600.7,2600.0,20.0]
[1646004736400,0.457,2600.7,2600.2,1.03532808]
[1646004736696,0.457,2600.7,2600.0,20.3]
[1646004737298,0.25,2600.9,2600.6,3.71107786]
[1646004737500,0.707,2601.5,2600.8,3.71107786]
[1646004737697,0.457,2601.5,2600.8,3.71107786]
[1646004737896,1.40112153,2601.7,2600.8,4.01107786]
[1646004738101,0.457,2601.7,2600.8,4.01107786]
[1646004738297,1.20930029,2601.5,2600.8,0.3]
[1646004738496,1.20930029,2601.5,2600.4,0.00096]
[1646004738696,1.20930029,2601.5,2600.5,3.71107786]
[1646004739097,1.66630029,2601.5,2600.8,0.00088542]
[1646004739298,2.38135,2601.5,2600.8,0.00088542]
[1646004739500,1.40112153,2601.4,2600.8,0.00088542]
[1646004739743,2.38135,2601.5,2600.8,8.542e-05]
[1646004739744,3.14704367,2601.3,2600.8,8.542e-05]
[1646004739943,0.5779,2601.2,2600.1,0.00096]
[1646004740144,1.97902153,2601.2,2600.1,0.00213888]
[1646004740346,1.22300142,2600.2,2600.1,0.00213888]
[1646004740543,1.22300142,2600.2,2600.1,0.00117888]
[1646004740751,1.22300142,2600.2,2599.5,0.00096]
[1646004741747,1.01809168,2599.7,2599.5,0.00096]
[1646004741944,1.01809168,2599.7,2599.3,4.01107786]
[1646004742145,1.1211,2600.3,2599.3,3.71107786]
[1646004742349,0.1211,2600.3,2599.4,0.00096]
[1646004742747,0.5781,2600.3,2599.4,0.00096]
[1646004743153,5.0,2599.9,2598.7,3.71107786]
[1646004743362,5.0,2599.9,2597.5,5.25693915]
[1646004743363,1.74592214,2599.8,2599.2,0.153868]
[1646004743617,1.74592214,2599.8,2599.4,3.8]
[1646004743618,1.10618448,2599.7,2599.4,3.8]
[1646004743803,1.96302,2599.9,2599.0,1.02081854]
[1646004743804,0.457,2599.6,2599.0,1.02081854]
[1646004744002,0.457,2599.6,2598.8,3.75370962]
[1646004744201,0.457,2599.6,2599.1,0.04092649]
[1646004744402,0.457,2599.6,2598.9,0.04206333]
[1646004744606,0.1206,2600.2,2599.4,3.71107786]
[1646004744803,0.25,2600.3,2599.5,3.71107786]
[1646004745002,0.457,2600.4,2599.8,1.41114375]
[1646004745206,0.457,2600.4,2599.7,3.71107786]
[1646004745406,0.457,2600.4,2599.7,0.00088359]
[1646004745607,0.457,2600.4,2599.7,0.30088359]
[1646004746009,0.457,2600.4,2599.7,0.00088359]
[1646004746207,0.1216,2600.3,2599.5,0.00104904]
[1646004746408,1.92557,2599.9,2599.5,0.00104904]
[1646004746607,0.457,2599.9,2599.5,0.00104904]
[1646004747011,1.41979,2599.9,2599.5,0.00104904]
[1646004747641,1.41979,2599.9,2599.6,0.00088363]
[1646004748647,1.41979,2599.9,2599.5,0.00104904]
[1646004748847,2.88785,2600.8,2599.8,1.34176471]
[1646004749045,0.4496,2601.1,2600.7,3.71107786]
[1646004749247,0.25,2601.8,2601.0,3.71107786]
[1646004749547,7.3,2602.5,2601.7,3.71107786]
[1646004749748,1.40112153,2602.7,2601.1,3.8827]
[1646004749946,1.22098787,2602.4,2601.6,1.27662175]
[1646004750147,1.85812153,2602.8,2602.2,3.71107786]
[1646004750148,0.457,2602.8,2602.2,3.71107786]
[1646004750347,0.457,2602.8,2601.9,3.71107786]
[1646004750746,0.457,2602.8,2602.0,3.5]
[1646004750992,0.457,2602.8,2602.3,3.71107786]
[1646004751197,1.56955024,2602.8,2602.3,3.71107786]
[1646004751395,0.96152,2603.1,2602.3,4.01107786]
[1646004751591,0.457,2603.2,2602.3,4.01107786]
[1646004751793,0.457,2603.2,2602.4,3.5]
[1646004751995,0.457,2603.2,2602.3,4.01107786]
[1646004752294,0.457,2603.2,2602.4,1.17986347]
[1646004752694,0.457,2603.2,2602.5,3.5]
[1646004752894,0.457,2603.2,2602.4,1.17986347]
[1646004752895,1.4185,2603.2,2602.4,1.17986347]
[1646004753094,1.4185,2603.2,2602.5,3.71107786]
[1646004753297,2.11845599,2603.6,2603.1,3.71107786]
[1646004753298,0.25,2603.6,2603.1,3.71107786]
[1646004753497,7.3,2603.8,2603.5,3.71107786]
[1646004753700,0.02352944,2603.4,2603.3,3.5]
[1646004753898,0.02352944,2603.4,2603.3,4.01107786]
[1646004754097,0.02352944,2603.4,2603.3,3.71107786]
[1646004754295,0.02352944,2603.4,2603.3,4.01107786]
[1646004754495,0.02352944,2603.4,2603.3,5.13884118]
[1646004754743,1.40112153,2604.2,2603.3,5.13884118]
[1646004754744,8.70112153,2604.2,2603.3,19.06764194]
[1646004754944,17.93468383,2605.4,2603.6,12.0127]
[1646004754945,0.00175885,2604.6,2603.6,12.0127]
[1646004755242,7.3,2604.7,2604.5,3.25494194]
[1646004755445,0.00175885,2604.6,2604.5,3.25494194]
[1646004755645,7.3,2604.7,2604.5,3.25494194]
[1646004756251,7.30588307,2604.7,2604.5,3.55494194]
[1646004756447,2.40112153,2605.0,2604.5,3.55494194]
[1646004756448,1.42640913,2605.1,2604.5,3.93764194]
[1646004756650,1.42640913,2605.1,2605.0,3.25494194]
[1646004756651,0.02352875,2605.1,2605.0,3.25494194]
[1646004756950,0.26985024,2606.0,2605.1,6.83424574]
[1646004757151,1.86845599,2606.6,2606.0,4.5]
[1646004757349,0.25,2606.6,2606.1,3.5]
[1646004757547,7.3,2606.8,2606.1,3.8]
[1646004757749,1.86845599,2607.1,2606.5,3.25494194]
[1646004757948,1.32145564,2607.0,2606.4,3.25494194]
[1646004758150,1.32145564,2607.0,2605.8,0.3]
[1646004758353,2.16501385,2606.3,2605.8,0.3]
[1646004758599,1.07851385,2606.3,2606.2,3.25494194]
[1646004758997,0.0355429,2607.2,2606.2,3.5]
[1646004759197,0.0355429,2607.2,2606.3,3.25494194]
[1646004759599,0.0355429,2607.2,2606.3,3.55494194]
[1646004759600,1.05858294,2607.0,2606.3,3.55494194]
[1646004760000,0.0355429,2607.2,2606.4,3.5]
[1646004760200,0.0355429,2607.2,2606.3,3.55494194]
[1646004760399,0.0355429,2607.2,2606.9,3.25494194]
[1646004760601,0.2022132,2607.4,2606.9,3.25494194]
[1646004760802,0.2022132,2607.4,2606.9,0.3]
[1646004761006,0.023512,2607.3,2606.9,0.3]
[1646004761202,0.023512,2607.3,2606.7,0.3]
[1646004761407,0.023512,2607.3,2606.4,3.25494194]
[1646004761610,0.023512,2607.3,2606.4,3.55494194]
[1646004761804,0.023512,2607.3,2607.1,3.25494194]
[1646004762004,0.01842659,2607.4,2607.1,3.25494194]
[1646004762005,0.0166703,2607.4,2607.1,3.25494194]
[1646004762250,0.0166703,2607.4,2607.1,3.55494194]
[1646004762251,0.04018225,2607.4,2607.1,3.55494194]
[1646004762651,7.30175629,2608.0,2607.2,9.5]
[1646004762854,0.25,2608.1,2608.0,2.5]
[1646004763052,0.0190211,2608.2,2607.9,3.25494194]
[1646004763252,0.0190211,2608.2,2608.1,3.25494194]
[1646004763652,0.0190211,2608.2,2608.1,0.3]
[1646004763856,0.0190211,2608.2,2606.6,12.50670687]
[1646004763857,0.88013215,2607.6,2606.7,3.5]
[1646004764063,0.88013215,2607.6,2607.1,3.25494194]
[1646004764064,2.07026551,2607.6,2607.1,3.25494194]
[1646004764255,0.88013215,2607.6,2607.1,3.25494194]
[1646004764860,0.88013215,2607.6,2606.9,3.5]
[1646004765057,0.88013215,2607.6,2607.5,3.25494194]
[1646004765459,0.88013215,2607.6,2606.5,3.50104119]
[1646004765659,0.88013215,2607.6,2607.1,3.25494194]
[1646004765993,0.88013215,2607.6,2607.3,0.00113559]
[1646004766395,0.88013215,2607.6,2607.5,1.09019542]
[1646004766602,0.88013215,2607.6,2607.3,3.25607753]
[1646004766795,0.88013215,2607.6,2607.3,3.55494194]
[1646004766995,0.88600554,2607.6,2607.5,3.25494194]
[1646004767195,0.88600554,2607.6,2607.5,3.55494194]
[1646004767597,0.04250926,2608.2,2607.6,0.886]
[1646004767800,2.19337337,2608.7,2607.6,0.886]
[1646004767801,0.25,2608.5,2608.1,3.25494194]
[1646004768002,0.0166301,2608.7,2608.4,3.25494194]
[1646004768302,0.0166301,2608.7,2607.8,6.6854]
[1646004768498,0.0166301,2608.7,2608.0,3.25494194]
[1646004768697,0.0166301,2608.7,2608.3,3.25494194]
[1646004768897,0.0166301,2608.7,2608.0,3.25494194]
[1646004769104,0.0166301,2608.7,2607.8,8.31064049]
[1646004769300,0.0166301,2608.7,2608.3,3.25494194]
[1646004769501,0.0166301,2608.7,2607.9,3.5]
[1646004769745,0.0166301,2608.7,2607.8,8.31064049]
[1646004770046,0.0166301,2608.7,2608.2,3.25494194]
[1646004770347,0.0166301,2608.7,2608.2,2.92944775]
[1646004770548,0.0166301,2608.7,2608.1,0.00120865]
[1646004770549,0.00586811,2608.4,2608.1,0.00120865]
[1646004771553,0.1209,2608.6,2608.1,0.3]
[1646004771554,1.22721374,2608.5,2608.1,0.3]
[1646004771755,0.00586811,2608.4,2608.1,0.00120865]
[1646004771952,0.00586811,2608.4,2608.3,2.92944775]
[1646004772752,0.1209,2608.6,2608.3,2.92944775]
[1646004772954,0.0058681,2608.5,2608.4,2.92944775]
[1646004773153,0.0058681,2608.5,2608.4,4.04012151]
[1646004773353,0.0058681,2608.5,2608.4,4.34012151]
[1646004773597,0.0058681,2608.5,2608.4,3.22944775]
[1646004773993,0.0166301,2608.7,2608.4,3.22944775]
[1646004774194,0.0166301,2608.7,2608.6,2.92944775]
[1646004774598,1.16351291,2608.3,2607.9,2.92944775]
[1646004774794,1.16351291,2608.3,2607.5,0.00103665]
[1646004774995,1.42055476,2608.3,2607.6,2.92944775]
[1646004775398,2.38600685,2608.3,2607.8,0.00120879]
[1646004775600,0.23805977,2608.1,2607.8,0.00120879]
[1646004775799,0.24014925,2608.0,2607.8,0.00120879]
[1646004775999,2.13070981,2608.3,2607.9,2.92944775]
[1646004776000,1.169375,2608.3,2607.9,2.92944775]
[1646004776198,1.17111981,2608.3,2607.8,0.00120879]
[1646004776399,1.16351291,2608.3,2608.2,2.92944775]
[1646004776599,1.17112024,2608.3,2608.0,0.0012087]
[1646004776797,1.16937543,2608.3,2608.2,2.92944775]
[1646004777239,1.16937543,2608.3,2608.2,3.22944775]
[1646004777646,1.16351291,2608.3,2608.2,3.22944775]
[1646004778046,2.37841065,2608.3,2608.2,6.72944775]
[1646004778245,1.16351291,2608.3,2608.2,6.72944775]
[1646004778445,1.16351291,2608.3,2608.2,7.02944775]
[1646004778646,1.16351291,2608.3,2608.2,6.72944775]
[1646004778845,1.16351291,2608.3,2608.2,7.02944775]
[1646004780047,1.16351291,2608.3,2608.2,7.03048545]
[1646004780248,1.291e-05,2608.3,2608.2,7.41318545]
[1646004780849,1.291e-05,2608.3,2608.2,7.03048545]
[1646004781096,1.291e-05,2608.3,2608.2,6.73048545]
[1646004783002,1.291e-05,2608.3,2608.2,3.7990377]
[1646004783203,3.74778328,2608.3,2608.2,3.7990377]
[1646004783401,0.70478328,2608.3,2608.2,3.7990377]
[1646004783601,4.5,2608.1,2606.8,2.92944775]
[1646004783803,4.20379713,2608.0,2606.8,2.92944775]
[1646004784004,0.20240486,2607.9,2606.8,2.92944775]
[1646004784202,0.27329482,2607.0,2606.0,6.6466]
[1646004784404,0.2304161,2606.9,2606.0,6.6466]
[1646004784602,0.2304161,2606.9,2606.2,2.92944775]
[1646004784854,0.22436656,2606.6,2606.2,2.92944775]
[1646004785050,0.20625119,2606.8,2606.2,0.3]
[1646004785252,1.41694,2607.3,2606.7,3.22944775]
[1646004785253,0.20686588,2607.3,2606.7,3.22944775]
[1646004785456,0.00173822,2607.1,2606.7,0.3]
[1646004785654,0.457,2607.7,2606.9,3.22944775]
[1646004785655,0.00173822,2607.4,2606.9,3.22944775]
[1646004785858,0.20760237,2607.5,2606.9,2.92944775]
[1646004786156,0.2504777,2607.0,2606.9,2.63650298]
[1646004786355,0.12253822,2607.4,2606.9,2.63650298]
[1646004786555,0.1208,2607.4,2606.9,2.63650298]
[1646004786757,1.41685,2607.5,2606.0,7.0293]
[1646004786957,0.00173822,2607.3,2606.5,2.63650298]
[1646004787157,0.00173822,2607.3,2606.8,2.63650298]
[1646004787362,1.41685,2607.5,2606.8,2.63650298]
[1646004787768,1.41685,2607.5,2606.5,2.63650298]
[1646004787769,1.10247631,2607.1,2606.5,2.63650298]
[1646004787957,1.10247631,2607.1,2606.0,6.9466]
[1646004787958,2.51950631,2607.1,2606.0,6.9466]
[1646004788158,0.00173822,2607.0,2606.3,2.63650298]
[1646004788357,0.457,2607.0,2606.3,2.63650298]
[1646004788604,0.407,2607.0,2606.3,2.63650298]
[1646004788805,0.407,2607.0,2606.5,0.00120652]
[1646004789006,0.96018,2606.6,2606.5,0.00120652]
[1646004789208,1.41718,2606.6,2606.5,0.00120652]
[1646004789413,7.3,2607.0,2606.5,2.6377095]
[1646004789414,0.00173822,2607.0,2606.5,2.6377095]
[1646004789611,0.00173822,2607.1,2606.7,2.63650298]
[1646004789809,0.00173822,2607.1,2605.5,9.0002]
[1646004789810,0.00173822,2607.2,2605.5,3.5]
[1646004790014,1.37501245,2607.0,2606.4,0.00120657]
[1646004790211,2.33509245,2607.0,2606.4,0.00120657]
[1646004790412,2.33509245,2607.0,2606.2,2.63554098]
[1646004791011,1.83201245,2607.0,2606.2,2.63554098]
[1646004791210,0.457,2607.0,2606.8,2.6290489]
[1646004791414,0.00173822,2606.9,2606.8,2.6290489]
[1646004791609,0.00173822,2607.3,2606.8,2.6290489]
[1646004791810,1.1381,2607.4,2606.8,2.6290489]
[1646004791811,0.1381,2607.4,2606.8,2.6290489]
[1646004792240,0.1381,2607.4,2606.8,2.9290489]
[1646004792848,0.1381,2607.4,2606.8,2.6290489]
[1646004793045,0.1381,2607.4,2606.8,2.9290489]
[1646004793547,0.1381,2607.4,2607.0,0.0012033]
[1646004793745,0.45873822,2607.3,2607.0,0.0012033]
[1646004793947,0.457,2607.3,2607.0,0.0012033]
[1646004794146,1.03539973,2607.1,2607.0,0.0012033]
[1646004794546,1.03539973,2607.1,2606.3,2.6290489]
[1646004794746,0.00173822,2607.1,2606.9,0.00120332]
[1646004794946,0.96,2607.2,2606.9,0.00120332]
[1646004795646,0.96,2607.2,2606.3,2.6290489]
[1646004795854,1.12825379,2606.9,2606.3,2.6290489]
[1646004796102,1.08263822,2607.2,2606.9,0.00120332]
[1646004796402,1.0809,2607.2,2606.9,0.00120332]
[1646004797002,1.0809,2607.2,2606.3,0.3]
[1646004797201,1.08263822,2607.2,2606.9,0.00120332]
[1646004797402,1.0809,2607.2,2606.9,0.00120332]
[1646004798007,2.8279511,2607.1,2606.9,0.00120332]
[1646004798203,0.32457938,2607.0,2606.3,2.6290489]
[1646004798406,0.0708,2607.0,2606.9,0.00120332]
[1646004798603,0.457,2607.0,2606.9,0.00120332]
[1646004798806,1.19337347,2606.9,2606.3,2.625936]
[1646004799503,1.65037347,2606.9,2606.3,2.625936]
[1646004800157,1.04843182,2606.5,2604.5,7.6227]
[1646004800359,0.24908241,2606.4,2605.0,2.625936]
[1646004800555,0.23122224,2606.2,2605.0,2.625936]
[1646004800756,2.831064,2606.4,2605.0,2.625936]
[1646004800757,0.5,2605.8,2605.0,2.625936]
[1646004800954,0.69615681,2606.1,2605.0,1.08964327]
[1646004800955,0.2023592,2606.1,2605.0,1.08964327]
[1646004801155,1.32677696,2605.6,2605.0,0.9786425]
[1646004801353,1.78377696,2605.6,2605.0,0.9786425]
[1646004801554,1.78377696,2605.6,2604.6,0.9786425]
[1646004801955,1.78377696,2605.6,2605.2,0.00120112]
[1646004802154,0.457,2605.6,2605.2,0.00120112]
[1646004802758,1.41769,2605.6,2605.2,0.00120112]
[1646004802966,0.457,2606.1,2605.4,0.9786425]
[1646004804397,0.457,2606.1,2605.6,0.00120091]
[1646004804796,1.41741,2606.1,2605.6,0.00120091]
[1646004805395,1.41741,2606.1,2604.7,0.9786425]
[1646004805396,0.21595,2606.0,2604.7,0.9786425]
[1646004805603,1.92287,2605.7,2603.8,0.9786425]
[1646004805800,0.21595,2604.7,2603.8,0.9786425]
[1646004806199,0.21595,2604.7,2603.5,6.5183]
[1646004806200,0.67295,2604.7,2603.5,6.5183]
[1646004806398,0.21595,2604.7,2604.6,0.9786425]
[1646004806597,0.21595,2605.2,2604.6,0.9786425]
[1646004806798,0.21595,2605.2,2605.0,0.9786425]
[1646004807448,0.707,2605.9,2605.2,6.0]
[1646004807651,2.88883822,2606.8,2605.8,1.3613425]
[1646004807652,0.50173822,2606.8,2605.8,1.3613425]
[1646004807850,0.50173822,2606.8,2606.2,0.9786425]
[1646004808050,0.50173822,2606.8,2605.9,3.5]
[1646004808051,7.6731,2606.7,2606.4,0.9786425]
[1646004808254,7.6731,2606.7,2605.8,0.01280643]
[1646004808450,7.6731,2606.7,2605.5,3.5]
[1646004808451,7.6731,2606.7,2606.6,0.9786425]
[1646004808651,7.6731,2606.7,2606.6,1.2786425]
[1646004808853,7.6731,2606.7,2606.6,1.15077826]
[1646004809254,7.6731,2606.7,2605.4,6.4935]
[1646004809454,7.6731,2606.7,2606.0,0.9786425]
[1646004809753,8.6731,2606.7,2606.0,0.9786425]
[1646004810252,8.6731,2606.7,2606.0,1.2786425]
[1646004810554,8.6731,2606.7,2606.2,0.00119766]
[1646004811407,9.82525417,2606.7,2606.0,1.2786425]
[1646004811609,9.82525417,2606.7,2606.2,0.00119766]
[1646004812107,7.6731,2606.7,2606.2,0.00119766]
[1646004812309,7.6731,2606.7,2606.6,0.9786425]
[1646004812508,7.6731,2606.7,2606.6,4.4786425]
[1646004812707,7.6731,2606.7,2606.6,1.2786425]
[1646004813610,7.6731,2606.7,2606.6,0.3]
[1646004813810,7.6731,2606.7,2605.9,0.3827]
[1646004814010,7.6731,2606.7,2606.5,0.9786425]
[1646004814213,7.6731,2606.7,2606.5,0.3]
[1646004814847,8.6731,2606.7,2606.2,0.97984016]
[1646004815042,8.6731,2606.7,2606.2,0.9786425]
[1646004815043,7.6731,2606.7,2606.2,0.9786425]
[1646004815244,8.6731,2606.7,2606.2,0.9786425]
[1646004815442,8.6731,2606.7,2606.2,4.77984016]
[1646004816247,8.6731,2606.7,2606.2,4.7786425]
[1646004816448,8.6731,2606.7,2606.2,4.77984016]
[1646004816648,9.63332,2606.7,2606.2,3.80119766]
[1646004817148,0.07096,2606.6,2606.2,3.80119766]
[1646004817348,1.96620448,2606.6,2606.2,3.8]
[1646004817549,0.07096,2606.6,2606.2,3.8]
[1646004817950,1.96620448,2606.6,2606.2,3.8]
[1646004818149,0.07096,2606.6,2606.2,3.8]
[1646004818808,11.52856448,2606.7,2606.2,3.8]
[1646004819206,1.89524448,2606.6,2606.2,3.8]
[1646004819607,9.63332,2606.7,2606.2,3.8]
[1646004819608,1.89524448,2606.5,2606.2,3.8]
[1646004820209,1.89524448,2606.5,2606.2,2.28284678]
[1646004820210,0.07098,2606.4,2606.2,2.28284678]
[1646004820414,1.27852806,2606.3,2606.2,2.28284678]
[1646004820811,3.46041,2606.2,2605.1,0.9786425]
[1646004821018,3.46041,2606.2,2604.8,0.9786425]
[1646004821019,1.89831055,2606.0,2604.8,0.9786425]
[1646004821221,0.07098,2605.9,2604.8,0.9786425]
[1646004821814,1.03391122,2605.5,2604.8,0.9786425]
[1646004822010,0.07098,2605.9,2604.7,3.5]
[1646004822011,0.96058,2605.8,2604.7,3.5]
[1646004822241,0.07098,2605.7,2605.6,0.9786425]
[1646004822447,1.0,2605.9,2605.6,0.9786425]
[1646004822646,1.0,2606.1,2605.6,0.9786425]
[1646004822845,2.16928374,2606.1,2605.3,0.9786425]
[1646004823045,1.89831055,2606.1,2605.3,0.9786425]
[1646004823447,1.37901721,2605.9,2605.3,0.9786425]
[1646004823647,2.85872055,2606.2,2605.6,0.00119793]
[1646004823648,3.13366031,2606.2,2605.6,0.00119793]
[1646004823854,3.85872055,2606.2,2605.6,0.00119793]
[1646004824050,3.10700049,2606.2,2605.6,0.00039793]
[1646004824250,3.85872055,2606.2,2605.6,0.00039793]
[1646004824449,2.85872055,2606.2,2605.6,0.00039793]